[Event "Titled Tuesday Blitz April 19 Late 2022"]
[White "Kohler, Aran"]
[Black "Bachmann, Axel"]
[WhiteFideId "1002856"]
[BlackFideId "3700488"]
[WhiteElo "2292"]
[BlackElo "2587"]
[Result "0-1"]
[Round "10"]
[TimeControl "180+1"]
[Date "2022.04.19"]
[WhiteClock "0:00:01"]
[BlackClock "0:00:04"]

1. e4 {[%clk 0:02:59]}  c5 {[%clk 0:02:54]} 2. Nf3 {[%clk 0:02:58]}  d6 {[%clk 0:02:54]} 3. d4 {[%clk 0:02:57]}  cxd4 {[%clk 0:02:55]} 4. Nxd4 {[%clk 0:02:57]}  Nf6 {[%clk 0:02:55]} 5. Nc3 {[%clk 0:02:57]}  a6 {[%clk 0:02:56]} 6. Bg5 {[%clk 0:02:56]}  Qa5 {[%clk 0:02:52]} 7. Bxf6 {[%clk 0:02:50]}  gxf6 {[%clk 0:02:34]} 8. Qd2 {[%clk 0:02:48]}  Nd7 {[%clk 0:02:33]} 9. Nd5 {[%clk 0:02:34]}  Qxd2+ {[%clk 0:02:27]} 10. Kxd2 {[%clk 0:02:33]}  Kd8 {[%clk 0:02:28]} 11. Bd3 {[%clk 0:02:17]}  e6 {[%clk 0:02:28]} 12. Ne3 {[%clk 0:02:14]}  h5 {[%clk 0:02:28]} 13. Ke2 {[%clk 0:02:10]}  Bh6 {[%clk 0:02:22]} 14. g3 {[%clk 0:02:09]}  Ne5 {[%clk 0:02:08]} 15. f4 {[%clk 0:02:07]}  Ng4 {[%clk 0:02:08]} 16. Nc4 {[%clk 0:02:05]}  Kc7 {[%clk 0:01:59]} 17. h3 {[%clk 0:02:02]}  b5 {[%clk 0:01:58]} 18. Nd2 {[%clk 0:01:56]}  e5 {[%clk 0:01:43]} 19. Nf5 {[%clk 0:01:47]}  exf4 {[%clk 0:01:41]} 20. hxg4 {[%clk 0:01:46]}  fxg3 {[%clk 0:01:31]} 21. Rxh5 {[%clk 0:01:35]}  Bxf5 {[%clk 0:01:30]} 22. exf5 {[%clk 0:01:12]}  Rae8+ {[%clk 0:01:27]} 23. Kd1 {[%clk 0:01:05]}  Re3 {[%clk 0:01:03]} 24. Be4 {[%clk 0:00:55]}  d5 {[%clk 0:00:58]} 25. Bg2 {[%clk 0:00:48]}  Rhe8 {[%clk 0:00:51]} 26. Nf3 {[%clk 0:00:45]}  Bf4 {[%clk 0:00:51]} 27. Rh1 {[%clk 0:00:40]}  d4 {[%clk 0:00:42]} 28. a4 {[%clk 0:00:37]}  d3 {[%clk 0:00:41]} 29. cxd3 {[%clk 0:00:37]}  Rxd3+ {[%clk 0:00:41]} 30. Kc2 {[%clk 0:00:37]}  Rd5 {[%clk 0:00:18]} 31. Rhe1 {[%clk 0:00:34]}  Rc5+ {[%clk 0:00:18]} 32. Kb3 {[%clk 0:00:33]}  bxa4+ {[%clk 0:00:17]} 33. Kb4 {[%clk 0:00:31]}  Rb5+ {[%clk 0:00:17]} 34. Ka3 {[%clk 0:00:31]}  Bd6+ {[%clk 0:00:15]} 35. Ka2 {[%clk 0:00:30]}  Reb8 {[%clk 0:00:14]} 36. Rab1 {[%clk 0:00:29]}  Rb3 {[%clk 0:00:08]} 37. Rec1+ {[%clk 0:00:28]}  Kd7 {[%clk 0:00:08]} 38. Rc3 {[%clk 0:00:29]}  R3b5 {[%clk 0:00:02]} 39. Rd3 {[%clk 0:00:29]}  a3 {[%clk 0:00:02]} 40. b3 {[%clk 0:00:29]}  a5 {[%clk 0:00:02]} 41. Rbd1 {[%clk 0:00:28]}  R8b6 {[%clk 0:00:02]} 42. Nd4 {[%clk 0:00:27]}  Rb4 {[%clk 0:00:02]} 43. Ne2 {[%clk 0:00:25]}  a4 {[%clk 0:00:02]} 44. Rb1 {[%clk 0:00:21]}  Re4 {[%clk 0:00:01]} 45. Nxg3 {[%clk 0:00:20]}  Rxg4 {[%clk 0:00:02]} 46. Rbd1 {[%clk 0:00:17]}  Kc7 {[%clk 0:00:01]} 47. Rxd6 {[%clk 0:00:15]}  Rxd6 {[%clk 0:00:02]} 48. Rxd6 {[%clk 0:00:14]}  Kxd6 {[%clk 0:00:03]} 49. Ne4+ {[%clk 0:00:15]}  Ke5 {[%clk 0:00:04]} 50. Bf3 {[%clk 0:00:14]}  Rf4 {[%clk 0:00:03]} 51. Bh1 {[%clk 0:00:14]}  Rxf5 {[%clk 0:00:04]} 52. Nc3 {[%clk 0:00:13]}  Rf1 {[%clk 0:00:03]} 53. Bc6 {[%clk 0:00:12]}  Rf2+ {[%clk 0:00:04]} 54. Kxa3 {[%clk 0:00:12]}  axb3 {[%clk 0:00:04]} 55. Kxb3 {[%clk 0:00:12]}  f5 {[%clk 0:00:04]} 56. Be8 {[%clk 0:00:11]}  f6 {[%clk 0:00:04]} 57. Bh5 {[%clk 0:00:11]}  f4 {[%clk 0:00:04]} 58. Kc4 {[%clk 0:00:11]}  Rh2 {[%clk 0:00:05]} 59. Bf3 {[%clk 0:00:10]}  Rh3 {[%clk 0:00:05]} 60. Bb7 {[%clk 0:00:09]}  f3 {[%clk 0:00:05]} 61. Nd1 {[%clk 0:00:09]}  Rh4+ {[%clk 0:00:05]} 62. Kd3 {[%clk 0:00:08]}  Rd4+ {[%clk 0:00:05]} 63. Kc2 {[%clk 0:00:09]}  Kf4 {[%clk 0:00:03]} 64. Nf2 {[%clk 0:00:07]}  Rc4+ {[%clk 0:00:04]} 65. Kd2 {[%clk 0:00:07]}  Rc7 {[%clk 0:00:04]} 66. Ba6 {[%clk 0:00:06]}  Rd7+ {[%clk 0:00:04]} 67. Bd3 {[%clk 0:00:06]}  Kg3 {[%clk 0:00:04]} 68. Ne4+ {[%clk 0:00:06]}  Kg2 {[%clk 0:00:04]} 69. Nxf6 {[%clk 0:00:04]}  Rd4 {[%clk 0:00:04]} 70. Ke3 {[%clk 0:00:03]}  f2 {[%clk 0:00:03]} 71. Kxd4 {[%clk 0:00:02]}  f1=Q {[%clk 0:00:03]} 72. Ne4 {[%clk 0:00:03]}  Qa1+ {[%clk 0:00:02]} 73. Ke3 {[%clk 0:00:01]}  Qa7+ {[%clk 0:00:03]} 74. Kd2 {[%clk 0:00:01]}  Kf3 {[%clk 0:00:04]} 0-1


[Site "https://www.chess.com"]

[Event "Titled Tuesday Blitz April 19 Late 2022"]
[White "Kosteniuk, Alexandra"]
[Black "Timofeev, Artyom"]
[WhiteFideId "4128125"]
[BlackFideId "4140419"]
[WhiteElo "2469"]
[BlackElo "2594"]
[Result "1-0"]
[Round "10"]
[TimeControl "180+1"]
[Date "2022.04.19"]
[WhiteClock "0:00:40"]
[BlackClock "0:00:15"]

1. e4 {[%clk 0:03:00]}  c5 {[%clk 0:02:59]} 2. Nf3 {[%clk 0:03:00]}  Nc6 {[%clk 0:02:56]} 3. Bb5 {[%clk 0:03:00]}  d6 {[%clk 0:02:56]} 4. c3 {[%clk 0:02:59]}  Bd7 {[%clk 0:02:52]} 5. O-O {[%clk 0:02:58]}  a6 {[%clk 0:02:50]} 6. Bc4 {[%clk 0:02:58]}  Nf6 {[%clk 0:02:46]} 7. Re1 {[%clk 0:02:58]}  b5 {[%clk 0:02:42]} 8. Bf1 {[%clk 0:02:57]}  e5 {[%clk 0:02:39]} 9. a4 {[%clk 0:02:57]}  b4 {[%clk 0:02:37]} 10. d4 {[%clk 0:02:57]}  bxc3 {[%clk 0:02:24]} 11. bxc3 {[%clk 0:02:57]}  cxd4 {[%clk 0:02:20]} 12. cxd4 {[%clk 0:02:57]}  Be7 {[%clk 0:02:21]} 13. Nc3 {[%clk 0:02:53]}  O-O {[%clk 0:02:20]} 14. Ba3 {[%clk 0:02:44]}  Bg4 {[%clk 0:02:16]} 15. dxe5 {[%clk 0:02:35]}  Nxe5 {[%clk 0:02:15]} 16. Be2 {[%clk 0:02:33]}  Bxf3 {[%clk 0:02:14]} 17. Bxf3 {[%clk 0:02:34]}  Rc8 {[%clk 0:02:14]} 18. Nd5 {[%clk 0:02:29]}  Nxd5 {[%clk 0:02:13]} 19. Qxd5 {[%clk 0:02:18]}  Nxf3+ {[%clk 0:01:53]} 20. gxf3 {[%clk 0:02:19]}  Rc3 {[%clk 0:01:53]} 21. Kg2 {[%clk 0:02:12]}  Qc7 {[%clk 0:01:32]} 22. Red1 {[%clk 0:02:06]}  a5 {[%clk 0:01:06]} 23. Rac1 {[%clk 0:02:00]}  h6 {[%clk 0:00:59]} 24. e5 {[%clk 0:01:30]}  Rxc1 {[%clk 0:00:39]} 25. Rxc1 {[%clk 0:01:29]}  Qd7 {[%clk 0:00:39]} 26. exd6 {[%clk 0:01:26]}  Bg5 {[%clk 0:00:39]} 27. Rc4 {[%clk 0:01:25]}  Rd8 {[%clk 0:00:28]} 28. Qb5 {[%clk 0:01:18]}  Qe6 {[%clk 0:00:27]} 29. h4 {[%clk 0:01:08]}  Bf6 {[%clk 0:00:26]} 30. Re4 {[%clk 0:01:07]}  Qa2 {[%clk 0:00:26]} 31. Bc5 {[%clk 0:01:01]}  Qc2 {[%clk 0:00:24]} 32. d7 {[%clk 0:00:52]}  Kh7 {[%clk 0:00:22]} 33. Bb6 {[%clk 0:00:45]}  Bxh4 {[%clk 0:00:15]} 34. Qf5+ {[%clk 0:00:40]} 1-0


[Site "https://www.chess.com"]

[Event "Titled Tuesday Blitz April 19 Late 2022"]
[White "Lehtosaari, Mauri"]
[Black "Romero Ruscalleda, Josep"]
[WhiteFideId "501999"]
[BlackFideId "2231859"]
[WhiteElo "2442"]
[BlackElo "2296"]
[Result "0-1"]
[Round "10"]
[TimeControl "180+1"]
[Date "2022.04.19"]
[WhiteClock "0:02:00"]
[BlackClock "0:01:21"]

1. d4 {[%clk 0:03:00]}  g6 {[%clk 0:03:00]} 2. Nf3 {[%clk 0:03:01]}  Bg7 {[%clk 0:02:59]} 3. Bg5 {[%clk 0:03:02]}  d6 {[%clk 0:02:59]} 4. c3 {[%clk 0:03:02]}  Nd7 {[%clk 0:02:58]} 5. e3 {[%clk 0:03:01]}  b6 {[%clk 0:02:57]} 6. Bc4 {[%clk 0:03:00]}  Ngf6 {[%clk 0:02:52]} 7. Qb3 {[%clk 0:02:59]}  O-O {[%clk 0:02:51]} 8. h4 {[%clk 0:02:58]}  c6 {[%clk 0:02:35]} 9. Nbd2 {[%clk 0:02:54]}  d5 {[%clk 0:02:31]} 10. Bd3 {[%clk 0:02:55]}  c5 {[%clk 0:02:28]} 11. Qa4 {[%clk 0:02:49]}  a6 {[%clk 0:02:05]} 12. Ne5 {[%clk 0:02:37]}  b5 {[%clk 0:01:43]} 13. Qd1 {[%clk 0:02:34]}  Qc7 {[%clk 0:01:37]} 14. f4 {[%clk 0:02:27]}  Nxe5 {[%clk 0:01:29]} 15. fxe5 {[%clk 0:02:27]}  Ng4 {[%clk 0:01:28]} 16. h5 {[%clk 0:02:15]}  f6 {[%clk 0:01:25]} 17. exf6 {[%clk 0:02:00]}  Qg3+ {[%clk 0:01:21]} 0-1


[Site "https://www.chess.com"]

[Event "Titled Tuesday Blitz April 19 Late 2022"]
[White "Lin, Dachey"]
[Black "Aroesti, Roee"]
[WhiteFideId "2029650"]
[BlackFideId "2817144"]
[WhiteElo "2313"]
[BlackElo "2068"]
[Result "1-0"]
[Round "10"]
[TimeControl "180+1"]
[Date "2022.04.19"]
[WhiteClock "0:00:05"]
[BlackClock "0:00:01"]

1. Nc3 {[%clk 0:03:00]}  d5 {[%clk 0:02:24]} 2. e4 {[%clk 0:03:01]}  dxe4 {[%clk 0:02:22]} 3. Nxe4 {[%clk 0:03:02]}  e5 {[%clk 0:02:22]} 4. Bc4 {[%clk 0:03:02]}  Nc6 {[%clk 0:01:51]} 5. d3 {[%clk 0:03:00]}  h6 {[%clk 0:01:43]} 6. Nf3 {[%clk 0:02:56]}  Nf6 {[%clk 0:01:41]} 7. Ng3 {[%clk 0:02:44]}  Bc5 {[%clk 0:01:38]} 8. O-O {[%clk 0:02:44]}  O-O {[%clk 0:01:38]} 9. Re1 {[%clk 0:02:43]}  Re8 {[%clk 0:01:39]} 10. c3 {[%clk 0:02:39]}  a6 {[%clk 0:01:38]} 11. h3 {[%clk 0:02:37]}  Qd6 {[%clk 0:01:31]} 12. Nh4 {[%clk 0:02:20]}  e4 {[%clk 0:00:56]} 13. d4 {[%clk 0:02:18]}  Bb6 {[%clk 0:00:50]} 14. Nhf5 {[%clk 0:01:48]}  Bxf5 {[%clk 0:00:48]} 15. Nxf5 {[%clk 0:01:48]}  Qd7 {[%clk 0:00:45]} 16. Ng3 {[%clk 0:01:48]}  Rad8 {[%clk 0:00:42]} 17. b4 {[%clk 0:01:36]}  Ne5 {[%clk 0:00:39]} 18. Be2 {[%clk 0:01:25]}  Ng6 {[%clk 0:00:38]} 19. Be3 {[%clk 0:01:20]}  Nd5 {[%clk 0:00:36]} 20. Qd2 {[%clk 0:01:20]}  f5 {[%clk 0:00:33]} 21. Bc4 {[%clk 0:01:20]}  Kh7 {[%clk 0:00:31]} 22. Nh5 {[%clk 0:01:16]}  Rf8 {[%clk 0:00:22]} 23. f4 {[%clk 0:00:52]}  exf3 {[%clk 0:00:20]} 24. gxf3 {[%clk 0:00:53]}  c6 {[%clk 0:00:20]} 25. Bf2 {[%clk 0:00:49]}  Bc7 {[%clk 0:00:19]} 26. Bf1 {[%clk 0:00:40]}  Qd6 {[%clk 0:00:18]} 27. Bg3 {[%clk 0:00:40]}  f4 {[%clk 0:00:17]} 28. Bh2 {[%clk 0:00:25]}  Rf5 {[%clk 0:00:17]} 29. c4 {[%clk 0:00:19]}  Ne3 {[%clk 0:00:16]} 30. Qd3 {[%clk 0:00:16]}  Rxh5 {[%clk 0:00:15]} 31. Rxe3 {[%clk 0:00:16]}  Rg5+ {[%clk 0:00:13]} 32. Kh1 {[%clk 0:00:16]}  Qxd4 {[%clk 0:00:10]} 33. Qxd4 {[%clk 0:00:16]}  Rxd4 {[%clk 0:00:11]} 34. Re8 {[%clk 0:00:14]}  a5 {[%clk 0:00:10]} 35. a3 {[%clk 0:00:14]}  a4 {[%clk 0:00:08]} 36. Rae1 {[%clk 0:00:13]}  Rd2 {[%clk 0:00:06]} 37. Bg1 {[%clk 0:00:13]}  Nh4 {[%clk 0:00:05]} 38. Be2 {[%clk 0:00:07]}  Rg2 {[%clk 0:00:05]} 39. Bc5 {[%clk 0:00:04]}  Rdxe2 {[%clk 0:00:01]} 40. R8xe2 {[%clk 0:00:03]}  Rxe2 {[%clk 0:00:01]} 41. Rxe2 {[%clk 0:00:04]}  Nxf3 {[%clk 0:00:01]} 42. Re7 {[%clk 0:00:05]} 1-0


[Site "https://www.chess.com"]

[Event "Titled Tuesday Blitz April 19 Late 2022"]
[White "Mekhitarian, Krikor Sevag"]
[Black "Isajevsky, Anton"]
[WhiteFideId "2107660"]
[BlackFideId "4142500"]
[WhiteElo "2598"]
[BlackElo "2510"]
[Result "0-1"]
[Round "10"]
[TimeControl "180+1"]
[Date "2022.04.19"]
[WhiteClock "0:00:02"]
[BlackClock "0:00:04"]

1. Nf3 {[%clk 0:02:55]}  d5 {[%clk 0:02:53]} 2. c4 {[%clk 0:02:55]}  e6 {[%clk 0:02:53]} 3. e3 {[%clk 0:02:53]}  Nf6 {[%clk 0:02:53]} 4. Nc3 {[%clk 0:02:51]}  a6 {[%clk 0:02:51]} 5. b3 {[%clk 0:02:49]}  c5 {[%clk 0:02:50]} 6. cxd5 {[%clk 0:02:49]}  exd5 {[%clk 0:02:49]} 7. d4 {[%clk 0:02:48]}  Nc6 {[%clk 0:02:48]} 8. Bb2 {[%clk 0:02:42]}  Bg4 {[%clk 0:02:47]} 9. dxc5 {[%clk 0:02:14]}  Bxc5 {[%clk 0:02:47]} 10. Be2 {[%clk 0:02:14]}  O-O {[%clk 0:02:40]} 11. O-O {[%clk 0:02:13]}  Qd6 {[%clk 0:01:40]} 12. h3 {[%clk 0:02:00]}  Bxf3 {[%clk 0:01:17]} 13. Bxf3 {[%clk 0:02:00]}  Rad8 {[%clk 0:01:18]} 14. Ne2 {[%clk 0:01:55]}  Ba7 {[%clk 0:00:51]} 15. Ng3 {[%clk 0:01:28]}  g6 {[%clk 0:00:49]} 16. Rc1 {[%clk 0:01:25]}  Bb8 {[%clk 0:00:39]} 17. Re1 {[%clk 0:01:24]}  Rfe8 {[%clk 0:00:37]} 18. Nf1 {[%clk 0:01:09]}  Ne4 {[%clk 0:00:27]} 19. g3 {[%clk 0:01:04]}  h5 {[%clk 0:00:27]} 20. Bg2 {[%clk 0:01:04]}  h4 {[%clk 0:00:26]} 21. g4 {[%clk 0:01:04]}  Qe7 {[%clk 0:00:07]} 22. a3 {[%clk 0:00:58]}  Be5 {[%clk 0:00:07]} 23. Qe2 {[%clk 0:00:56]}  Bxb2 {[%clk 0:00:06]} 24. Qxb2 {[%clk 0:00:56]}  Ne5 {[%clk 0:00:07]} 25. Red1 {[%clk 0:00:55]}  Qf6 {[%clk 0:00:05]} 26. Qe2 {[%clk 0:00:43]}  Rc8 {[%clk 0:00:05]} 27. Rxc8 {[%clk 0:00:21]}  Rxc8 {[%clk 0:00:05]} 28. Rxd5 {[%clk 0:00:22]}  Nc3 {[%clk 0:00:05]} 29. Qc2 {[%clk 0:00:22]}  Nf3+ {[%clk 0:00:03]} 30. Kh1 {[%clk 0:00:22]}  Rc6 {[%clk 0:00:01]} 31. Qd3 {[%clk 0:00:07]}  Nxd5 {[%clk 0:00:02]} 32. Qxd5 {[%clk 0:00:05]}  Rc1 {[%clk 0:00:01]} 33. Qd3 {[%clk 0:00:01]}  Re1 {[%clk 0:00:01]} 34. Qc2 {[%clk 0:00:01]}  Kg7 {[%clk 0:00:01]} 35. g5 {[%clk 0:00:01]}  Qf5 {[%clk 0:00:01]} 36. Qxf5 {[%clk 0:00:01]}  gxf5 {[%clk 0:00:02]} 37. b4 {[%clk 0:00:01]}  Nd2 {[%clk 0:00:02]} 38. a4 {[%clk 0:00:01]}  Ne4 {[%clk 0:00:02]} 39. f3 {[%clk 0:00:01]}  Nd2 {[%clk 0:00:02]} 40. Kg1 {[%clk 0:00:02]}  Nxf1 {[%clk 0:00:03]} 41. Bxf1 {[%clk 0:00:03]}  Rb1 {[%clk 0:00:04]} 42. b5 {[%clk 0:00:03]}  axb5 {[%clk 0:00:05]} 43. axb5 {[%clk 0:00:04]}  Kg6 {[%clk 0:00:04]} 44. f4 {[%clk 0:00:04]}  f6 {[%clk 0:00:05]} 45. gxf6 {[%clk 0:00:03]}  Kxf6 {[%clk 0:00:06]} 46. Kf2 {[%clk 0:00:04]}  Rb2+ {[%clk 0:00:07]} 47. Be2 {[%clk 0:00:04]}  Ra2 {[%clk 0:00:07]} 48. Kf3 {[%clk 0:00:05]}  b6 {[%clk 0:00:08]} 49. Bd3 {[%clk 0:00:05]}  Ra3 {[%clk 0:00:08]} 50. Be2 {[%clk 0:00:05]}  Ra2 {[%clk 0:00:08]} 51. Bf1 {[%clk 0:00:05]}  Ra1 {[%clk 0:00:09]} 52. Be2 {[%clk 0:00:05]}  Rg1 {[%clk 0:00:09]} 53. Kf2 {[%clk 0:00:05]}  Rg3 {[%clk 0:00:10]} 54. Bf1 {[%clk 0:00:05]}  Ke6 {[%clk 0:00:10]} 55. Bg2 {[%clk 0:00:06]}  Kf6 {[%clk 0:00:10]} 56. Bf1 {[%clk 0:00:05]}  Rg7 {[%clk 0:00:11]} 57. Bg2 {[%clk 0:00:04]}  Rd7 {[%clk 0:00:10]} 58. Bc6 {[%clk 0:00:05]}  Rd2+ {[%clk 0:00:10]} 59. Kf1 {[%clk 0:00:01]}  Rb2 {[%clk 0:00:08]} 60. Kg1 {[%clk 0:00:01]}  Re2 {[%clk 0:00:07]} 61. e4 {[%clk 0:00:01]}  fxe4 {[%clk 0:00:07]} 62. Kf1 {[%clk 0:00:02]}  Rb2 {[%clk 0:00:06]} 63. Bxe4 {[%clk 0:00:02]}  Rxb5 {[%clk 0:00:06]} 64. Kf2 {[%clk 0:00:03]}  Rb3 {[%clk 0:00:06]} 65. Bd5 {[%clk 0:00:02]}  Rxh3 {[%clk 0:00:05]} 66. Bg2 {[%clk 0:00:02]}  Rc3 {[%clk 0:00:04]} 0-1


[Site "https://www.chess.com"]

[Event "Titled Tuesday Blitz April 19 Late 2022"]
[White "Nakamura, Hikaru"]
[Black "Keymer, Vincent"]
[WhiteFideId "2016192"]
[BlackFideId "12940690"]
[WhiteElo "2850"]
[BlackElo "2557"]
[Result "1-0"]
[Round "10"]
[TimeControl "180+1"]
[Date "2022.04.19"]
[WhiteClock "0:00:20"]
[BlackClock "0:00:02"]

1. Nf3 {[%clk 0:03:00]}  d5 {[%clk 0:02:59]} 2. b3 {[%clk 0:03:00]}  Bg4 {[%clk 0:02:59]} 3. e3 {[%clk 0:03:00]}  c6 {[%clk 0:02:57]} 4. Bb2 {[%clk 0:03:00]}  Nd7 {[%clk 0:02:57]} 5. d3 {[%clk 0:03:01]}  Ngf6 {[%clk 0:02:52]} 6. Nbd2 {[%clk 0:02:59]}  a5 {[%clk 0:02:48]} 7. h3 {[%clk 0:02:58]}  Bh5 {[%clk 0:02:48]} 8. g4 {[%clk 0:02:56]}  Bg6 {[%clk 0:02:48]} 9. Nh4 {[%clk 0:02:56]}  e5 {[%clk 0:02:47]} 10. a3 {[%clk 0:02:55]}  Bd6 {[%clk 0:02:46]} 11. Bg2 {[%clk 0:02:55]}  Nc5 {[%clk 0:02:45]} 12. Nxg6 {[%clk 0:02:53]}  hxg6 {[%clk 0:02:45]} 13. g5 {[%clk 0:02:52]}  Nfd7 {[%clk 0:02:29]} 14. Qg4 {[%clk 0:02:49]}  Qe7 {[%clk 0:02:26]} 15. h4 {[%clk 0:02:49]}  Ne6 {[%clk 0:02:05]} 16. c4 {[%clk 0:02:42]}  Nec5 {[%clk 0:01:52]} 17. Ke2 {[%clk 0:02:41]}  d4 {[%clk 0:01:47]} 18. Rab1 {[%clk 0:02:16]}  O-O-O {[%clk 0:01:36]} 19. b4 {[%clk 0:02:13]}  Na4 {[%clk 0:01:35]} 20. c5 {[%clk 0:02:13]}  Bc7 {[%clk 0:01:32]} 21. b5 {[%clk 0:02:03]}  dxe3 {[%clk 0:00:48]} 22. fxe3 {[%clk 0:01:36]}  cxb5 {[%clk 0:00:47]} 23. c6 {[%clk 0:01:35]}  Kb8 {[%clk 0:00:44]} 24. cxd7 {[%clk 0:01:32]}  Rxd7 {[%clk 0:00:45]} 25. Ba1 {[%clk 0:01:28]}  Nc5 {[%clk 0:00:14]} 26. Rxb5 {[%clk 0:01:23]}  Rxd3 {[%clk 0:00:15]} 27. Ne4 {[%clk 0:01:20]}  Ne6 {[%clk 0:00:05]} 28. Rhb1 {[%clk 0:01:08]}  Qxa3 {[%clk 0:00:04]} 29. Rxb7+ {[%clk 0:01:06]}  Kc8 {[%clk 0:00:04]} 30. Kf1 {[%clk 0:00:34]}  Rxe3 {[%clk 0:00:03]} 31. Kg1 {[%clk 0:00:34]}  Rd3 {[%clk 0:00:01]} 32. Nf2 {[%clk 0:00:24]}  Rd7 {[%clk 0:00:01]} 33. Qe4 {[%clk 0:00:21]}  Kd8 {[%clk 0:00:01]} 34. Bxe5 {[%clk 0:00:19]}  Bxe5 {[%clk 0:00:01]} 35. Qxe5 {[%clk 0:00:18]}  Rxb7 {[%clk 0:00:02]} 36. Rxb7 {[%clk 0:00:19]}  Qc1+ {[%clk 0:00:02]} 37. Bf1 {[%clk 0:00:20]}  Qc6 {[%clk 0:00:02]} 38. Rb8+ {[%clk 0:00:19]}  Kd7 {[%clk 0:00:02]} 39. Rxh8 {[%clk 0:00:20]} 1-0


[Site "https://www.chess.com"]

[Event "Titled Tuesday Blitz April 19 Late 2022"]
[White "Nazaretyan, Tigran"]
[Black "Lopez Idarraga, Daniel Eduardo"]
[WhiteFideId "24162345"]
[BlackFideId "4405501"]
[WhiteElo "2225"]
[BlackElo "2055"]
[Result "1-0"]
[Round "10"]
[TimeControl "180+1"]
[Date "2022.04.19"]
[WhiteClock "0:00:28"]
[BlackClock "0:00:18"]

1. d4 {[%clk 0:03:00]}  d5 {[%clk 0:02:59]} 2. c4 {[%clk 0:03:00]}  c6 {[%clk 0:02:52]} 3. Nf3 {[%clk 0:03:00]}  Nf6 {[%clk 0:02:52]} 4. Nc3 {[%clk 0:03:00]}  e6 {[%clk 0:02:52]} 5. e3 {[%clk 0:02:59]}  Nbd7 {[%clk 0:02:50]} 6. Qc2 {[%clk 0:02:59]}  Bd6 {[%clk 0:02:51]} 7. Be2 {[%clk 0:02:58]}  O-O {[%clk 0:02:50]} 8. O-O {[%clk 0:02:59]}  b6 {[%clk 0:02:47]} 9. Rd1 {[%clk 0:02:57]}  Bb7 {[%clk 0:02:46]} 10. b3 {[%clk 0:02:56]}  Qe7 {[%clk 0:02:46]} 11. Bb2 {[%clk 0:02:56]}  Rac8 {[%clk 0:02:45]} 12. e4 {[%clk 0:02:53]}  Ba3 {[%clk 0:02:41]} 13. e5 {[%clk 0:02:48]}  Ne8 {[%clk 0:02:14]} 14. Bxa3 {[%clk 0:02:44]}  Qxa3 {[%clk 0:02:13]} 15. Ng5 {[%clk 0:02:37]}  g6 {[%clk 0:02:12]} 16. Rd3 {[%clk 0:02:23]}  Qe7 {[%clk 0:02:09]} 17. f4 {[%clk 0:02:22]}  c5 {[%clk 0:01:57]} 18. cxd5 {[%clk 0:02:17]}  cxd4 {[%clk 0:01:57]} 19. d6 {[%clk 0:02:16]}  Qd8 {[%clk 0:01:52]} 20. Rxd4 {[%clk 0:02:14]}  Nxe5 {[%clk 0:01:49]} 21. Nxh7 {[%clk 0:01:53]}  Nc6 {[%clk 0:01:48]} 22. Rdd1 {[%clk 0:01:18]}  Kxh7 {[%clk 0:01:42]} 23. d7 {[%clk 0:01:18]}  Rc7 {[%clk 0:01:33]} 24. dxe8=Q {[%clk 0:01:09]}  Qxe8 {[%clk 0:01:34]} 25. Ne4 {[%clk 0:01:09]}  Qe7 {[%clk 0:01:18]} 26. Qc3 {[%clk 0:01:02]}  e5 {[%clk 0:01:05]} 27. Rac1 {[%clk 0:00:39]}  Rfc8 {[%clk 0:00:53]} 28. Nd6 {[%clk 0:00:34]}  Nd4 {[%clk 0:00:36]} 29. Qh3+ {[%clk 0:00:34]}  Kg7 {[%clk 0:00:32]} 30. Nxc8 {[%clk 0:00:32]}  Bxc8 {[%clk 0:00:18]} 31. Qe3 {[%clk 0:00:28]} 1-0


[Site "https://www.chess.com"]